fUSD/lending_fUSD_20241016
["ID","MTS","AMOUNT","RATE_DAILY","PERIOD"]
[340315423,1729037098424,482.68,9.443e-05,2]
[340315428,1729037431868,-1186.962612,0.00010518,2]
[340315429,1729037431877,-2202.037388,0.00010571,2]
[340315430,1729037432141,-16001.01695421,0.00010571,2]
[340315431,1729037432160,-5633.15572844,0.00010571,2]
[340315432,1729037432172,-63.78992935,0.00010571,2]
[340315433,1729037432180,-188.77891254,0.0001078,2]
[340315435,1729037432190,-250.0,0.00010797,2]
[340315436,1729037432199,-2182.08115811,0.00010849,2]
[340315438,1729037432217,-834.06811505,0.00010849,2]
[340315439,1729037432232,-398.2,0.00010849,2]
[340315440,1729037432243,-1474.18482912,0.00010849,2]
[340315447,1729037437858,-595.8126,0.000108,2]
[340315448,1729037437868,-1210.29043032,0.00010849,2]
[340315449,1729037437912,-789.23533344,0.00010849,2]
[340315450,1729037437924,-785.23100942,0.00010849,2]
[340315451,1729037438016,-575.61,0.00010849,2]
[340315452,1729037438027,-782.53154917,0.00010849,2]
[340315453,1729037438038,-276.73994888,0.00010849,2]
[340315454,1729037438174,-6685.13584541,0.00010849,2]
[340315455,1729037438183,-1433.51,0.00010849,2]
[340315456,1729037438194,-2620.36,0.00010889,2]
[340315457,1729037438203,-150.0,0.00010894,2]
[340315458,1729037438212,-12222.19,0.00010894,2]
[340315459,1729037438222,-38509.7304,0.00010895,2]
[340315460,1729037438231,-1724.4573,0.00010895,2]
[340315461,1729037438240,-16050.6699,0.00010895,2]
[340315462,1729037438251,-633.2,0.00010895,2]
[340315463,1729037438260,-20733.3007,0.00010895,2]
[340315464,1729037438269,-18304.0275,0.000109,2]
[340315465,1729037438279,-1901.4562,0.000109,2]
[340315466,1729037438290,-1428.2992,0.000109,2]
[340315467,1729037438300,-827.9067,0.000109,2]
[340315468,1729037438310,-179.02675744,0.000109,2]
[340315469,1729037438321,-213.8018,0.000109,2]
[340315470,1729037438331,-38685.276,0.000109,2]
[340315471,1729037438340,-627.5545,0.000109,2]
[340315472,1729037438350,-2468.34117106,0.000109,2]
[340315473,1729037438360,-1491.59,0.00010907,2]
[340315474,1729037438369,-158.23,0.00010959,2]
[340315475,1729037438379,-164.45,0.00010959,2]
[340315476,1729037438388,-424.95,0.00010959,2]
[340315477,1729037438398,-150.0,0.00010959,2]
[340315478,1729037438407,-892750.90246101,0.00011,2]
[340315479,1729037438431,-554.47157892,0.00011,2]
[340315482,1729037439949,-2231.6994,0.00011,2]
[340315483,1729037439961,-1235.75000002,0.00011,2]
[340315484,1729037439972,-5630.65158727,0.00011,2]
[340315485,1729037439983,-794.294973,0.00011,2]
[340315486,1729037440004,-1667.9909571,0.00011,2]
[340315487,1729037440015,-785.69984702,0.00011,2]
[340315488,1729037440026,-1006.204659,0.00011,2]
[340315489,1729037440115,-22900.82877106,0.00011,2]
[340315490,1729037440126,-924.19566351,0.00011,2]
[340315724,1729037442937,-5299.99999998,0.00011,2]
[340315741,1729037443096,-754.28271799,0.00011,2]
[340315945,1729037445858,-630.27534493,0.00011,2]
[340315946,1729037445963,-148015.3019999,0.00011,2]
[340315947,1729037445975,-3134.6067,0.00011,2]
[340315948,1729037446016,-78754.54645779,0.00011,2]
[340315949,1729037446029,-46111.0731969,0.00011,2]
[340315951,1729037701042,486.13,9.518e-05,2]
[340315952,1729037719356,5010.556807,0.00027,60]
[340315961,1729037751555,-2318.006,0.00010273,2]
[340315962,1729037751578,-496.230637,0.00010844,2]
[340315963,1729037751601,-3800.76468554,0.00010899,2]
[340315964,1729037751623,-150.0,0.00010899,2]
[340315965,1729037751646,-506.6185,0.000109,2]
[340315966,1729037751669,-2418.63891493,0.000109,2]
[340315967,1729037751695,-1383.0859,0.000109,2]
[340315968,1729037751718,-31595.2805,0.000109,2]
[340315969,1729037751740,-210.05556761,0.000109,2]
[340315970,1729037751762,-1645.5607807,0.000109,2]
[340315971,1729037751787,-1763.88408526,0.000109,2]
[340315972,1729037751809,-1402.0,0.000109,2]
[340315973,1729037751834,-159.29,0.00010959,2]
[340315974,1729037751858,-29060.58442896,0.00010995,2]
[340316005,1729038150740,550.0,0.0001,2]
[340316006,1729038191332,2000.0,0.00026905,120]
[340316007,1729038198820,221.866384,0.00026905,120]
[340316008,1729038201340,204.445134,0.00026905,120]
[340316009,1729038289505,461.82,9.446e-05,2]
[340316010,1729038362449,1500.0,0.00025,120]
[340316012,1729038519438,2000.0,0.00027,120]
[340316033,1729038631908,-663.698535,0.00010895,2]
[340316036,1729038631919,-1850.320965,0.00010895,2]
[340316038,1729038631928,-1116.166575,0.00010895,2]
[340316040,1729038631939,-669.82,0.00010895,2]
[340316041,1729038631949,-2713.755625,0.00010895,2]
[340316042,1729038631958,-179.02675744,0.000109,2]
[340316043,1729038631968,-2176.77502341,0.000109,2]
[340316044,1729038631977,-162.23,0.00010959,2]
[340316045,1729038631987,-175.62308792,0.0001099,2]
[340316046,1729038631997,-577.0,0.00011,2]
[340316047,1729038632008,-14573.10890962,0.00011,2]
[340316048,1729038632019,-2035.89616596,0.00011,2]
[340316049,1729038632029,-3504.07490294,0.00011,2]
[340316050,1729038632040,-450.44936041,0.00011,2]
[340316051,1729038632051,-6178.12542846,0.00011,2]
[340316052,1729038632062,-1963.7448324,0.00011,2]
[340316053,1729038632072,-2218.35862201,0.00011,2]
[340316054,1729038632087,-592.36206145,0.00011,2]
[340316055,1729038632097,-4773.11977575,0.00011,2]
[340316056,1729038632115,-1098.10124655,0.00011,2]
[340316057,1729038632126,-688.39999162,0.00011,2]
[340316058,1729038632137,-2194.55656055,0.00011,2]
[340316059,1729038632147,-2301.70685188,0.00011,2]
[340316060,1729038632159,-45063.46960216,0.00011,2]
[340316061,1729038632170,-700.0,0.00011,2]
[340316062,1729038632181,-8711.64992614,0.00011,2]
[340316063,1729038632192,-966.03305,0.00011,2]
[340316064,1729038632203,-952.93025219,0.00011,2]
[340316065,1729038632224,-808.93055775,0.00011,2]
[340316066,1729038632235,-5925.17501481,0.00011,2]
[340316067,1729038632250,-5243.29172088,0.00011,2]
[340316068,1729038632261,-278.60878409,0.00011,2]
[340316069,1729038632272,-541.65536624,0.00011,2]
[340316070,1729038632293,-256704.74221135,0.00011,2]
[340316079,1729038637982,-699.69900693,0.00011,2]
[340316080,1729038637993,-13142.68775836,0.00011,2]
[340316081,1729038638003,-845.302431,0.00011,2]
[340316082,1729038638039,-232583.47044262,0.00011,2]
[340316083,1729038638049,-2953.88686576,0.00011,2]
[340316084,1729038638061,-4222.68389504,0.00011,2]
[340316085,1729038638101,-4887.65969994,0.00011,2]
[340316086,1729038638116,-1366.01275394,0.00011,2]
[340316087,1729038638128,-2901.32341379,0.00011,2]
[340316088,1729038638144,-1264.43557993,0.00011,2]
[340316089,1729038638160,-2984.0,0.00011,2]
[340316090,1729038638171,-173979.09565046,0.00011,2]
[340316094,1729038639992,-4218.43884436,0.00011,2]
[340316095,1729038640005,-794.79791123,0.00011,2]
[340316096,1729038640049,-1707.20808955,0.00011,2]
[340316097,1729038640062,-2383.28089997,0.00011,2]
[340316098,1729038640115,-1727.99999992,0.00011,2]
[340316099,1729038640168,-623.78023298,0.00011,2]
[340316100,1729038640228,-5555.07151245,0.00011,2]
[340316101,1729038640241,-465.7513167,0.00011,2]
[340316102,1729038640255,-391.951146,0.00011,2]
[340316103,1729038640267,-256.08357923,0.00011,2]
[340316104,1729038640278,-6664.80077973,0.00011,2]
[340316105,1729038640290,-100045.32821675,0.00011,2]
[340316106,1729038640301,-2110.66568425,0.00011,2]
[340316107,1729038640312,-969.65529697,0.00011,2]
[340316108,1729038640325,-397.95,0.00011,2]
[340316109,1729038640351,-998.486475,0.00011,2]
[340316250,1729038642980,-4924.92,0.00011,2]
[340316252,1729038643039,-1302.1840501,0.00011,2]
[340316253,1729038643099,-2297.55648938,0.00011,2]
[340316254,1729038643110,-6306.89951231,0.00011,2]
[340316255,1729038643155,-4638.83211183,0.00011,2]
[340316256,1729038643169,-359.73856219,0.00011,2]
[340316257,1729038643180,-6130.62450001,0.00011,2]
[340316258,1729038643216,-6406.96811911,0.00011,2]
[340316259,1729038643228,-5420.415,0.00011,2]
[340316260,1729038643241,-7300.0,0.00011,2]
[340316261,1729038643324,-1371.56063522,0.00011,2]
[340316264,1729038646235,-4934.2712812,0.00011,2]
[340316265,1729038646246,-1769.14973445,0.00011,2]
[340316266,1729038646259,-81409.49999999,0.00011,2]
[340316267,1729038646281,-3346.35,0.00011,2]
[340316268,1729038646292,-1073.12504633,0.00011,2]
[340316269,1729038646303,-41094.540637,0.00011,2]
[340316270,1729038646339,-5329.53545774,0.00011,2]
[340316272,1729038791134,500.0,0.00026924,120]
[340316273,1729038794032,2000.0,0.00026924,120]
[340316275,1729038870825,464.9,9.495e-05,2]
[340316277,1729039023259,300.0,0.00027,60]
[340316279,1729039228019,169.34,0.00010219,2]
[340316281,1729039232087,8863.0,0.00010219,2]
[340316282,1729039265333,9017.93011954,0.00010229,2]
[340316283,1729039389464,500.0,0.00026924,120]
[340316284,1729039392135,2000.0,0.00026924,120]
[340316285,1729039396266,466.87,8.312e-05,2]
[340316286,1729039401374,500.0,0.00010183,2]
[340316287,1729039425021,571.9,0.00010239,2]
[340316288,1729039531667,4241.99,0.00010212,2]
[340316289,1729039676734,23900.0,0.00010098,2]
[340316291,1729039734187,2102.59405009,0.00027,60]
[340316292,1729039754788,250.0,0.00010064,2]
[340316296,1729039779171,155.4,0.00010085,2]
[340316297,1729039821356,1585.83,0.0001016,2]
[340316298,1729039832216,-250.0,0.00010257,2]
[340316299,1729039832229,-200.0,0.00010268,2]
[340316300,1729039832244,-852.36677995,0.00010268,2]
[340316301,1729039832255,-2438.29356896,0.00010269,2]
[340316302,1729039832273,-1592.89895978,0.00010269,2]
[340316303,1729039832286,-315.41747126,0.00010269,2]
[340316304,1729039832296,-8318.44,0.00010316,2]
[340316305,1729039832309,-12097.99389612,0.00010329,2]
[340316306,1729039832319,-202.13,0.00010356,2]
[340316307,1729039832328,-6601.05,0.00010445,2]
[340316308,1729039832339,-466.87,0.00010576,2]
[340316309,1729039832350,-4751.0,0.00010889,2]
[340316310,1729039832360,-174.293,0.0001089,2]
[340316311,1729039832370,-168.069,0.0001089,2]
[340316312,1729039832380,-150.99,0.0001089,2]
[340316313,1729039832389,-499.99,0.0001089,2]
[340316314,1729039832399,-1000.0,0.00010899,2]
[340316315,1729039832407,-2658.24445229,0.00010899,2]
[340316316,1729039832417,-8.6920691,0.00010899,2]
[340316317,1729039832455,111680.41,0.00010235,2]
[340316318,1729039832491,-142.64803355,0.00010899,2]
[340316319,1729039832500,-150.0,0.00010899,2]
[340316320,1729039832510,-1444.99816195,0.00010899,2]
[340316321,1729039832519,-315.02224657,0.00010899,2]
[340316322,1729039832528,-678.40311822,0.000109,2]
[340316323,1729039832540,-766.59504373,0.000109,2]
[340316324,1729039832550,-33.40495627,0.000109,2]
[340316325,1729039832566,-281.61729028,0.000109,2]
[340316326,1729039832576,-1029.3117,0.000109,2]
[340316327,1729039832585,-663.20837706,0.000109,2]
[340316330,1729039838177,-1507.68482294,0.000109,2]
[340316331,1729039838188,-355.7179,0.000109,2]
[340316332,1729039838197,-3392.4181,0.000109,2]
[340316333,1729039838207,-1299.5439,0.000109,2]
[340316335,1729039838218,-3264.94929209,0.000109,2]
[340316336,1729039838229,-944.18934277,0.000109,2]
[340316337,1729039838240,-1003.54624976,0.000109,2]
[340316338,1729039838251,-3204.43052,0.000109,2]
[340316339,1729039838277,-864.36529538,0.000109,2]
[340316340,1729039838286,-173.97609633,0.000109,2]
[340316341,1729039838296,-838.795,0.000109,2]
[340316342,1729039838306,-1651.0,0.000109,2]
[340316343,1729039838315,-1444.99816195,0.000109,2]
[340316344,1729039838325,-315.02224655,0.000109,2]
[340316345,1729039838334,-160.82,0.00010959,2]
[340316346,1729039838344,-158.43,0.00010959,2]
[340316347,1729039838353,-459.22,0.00010959,2]
[340316348,1729039838363,-4059.22,0.00010959,2]
[340316349,1729039838372,-250.0,0.00010959,2]
[340316350,1729039838382,-211.94,0.00010959,2]
[340316351,1729039838392,-176.61,0.00010959,2]
[340316352,1729039838401,-883.09,0.00010959,2]
[340316353,1729039838410,-150.0,0.00010959,2]
[340316354,1729039838419,-500.0,0.00010973,2]
[340316355,1729039838429,-500.0,0.00010973,2]
[340316356,1729039838439,-314.82237012,0.00010996,2]
[340316357,1729039838449,-472.23355518,0.00010997,2]
[340316358,1729039838459,-556.52178579,0.00010998,2]
[340316359,1729039838468,-500.0,0.00010998,2]
[340316360,1729039838477,-342.25911505,0.00010998,2]
[340316361,1729039838486,-163.60863471,0.00010998,2]
[340316362,1729039838496,-500.0,0.00010998,2]
[340316363,1729039838505,-500.0,0.00010998,2]
[340316364,1729039838515,-500.0,0.00010998,2]
[340316365,1729039838525,-500.0,0.00010998,2]
[340316366,1729039838534,-500.0,0.00010998,2]
[340316367,1729039838544,-500.0,0.00010998,2]
[340316368,1729039838553,-500.0,0.00010998,2]
[340316369,1729039838563,-500.0,0.00010998,2]
[340316370,1729039838572,-500.0,0.00010998,2]
[340316371,1729039838582,-500.0,0.00010998,2]
[340316372,1729039838591,-500.0,0.00010998,2]
[340316373,1729039838600,-500.0,0.00010998,2]
[340316374,1729039838610,-1179.72,0.00010998,2]
[340316375,1729039838619,-1179.72,0.00010998,2]
[340316376,1729039838628,-1179.72,0.00010998,2]
[340316377,1729039838638,-1179.72,0.00010998,2]
[340316378,1729039838647,-1179.72,0.00010998,2]
[340316379,1729039838656,-1179.72,0.00010998,2]
[340316380,1729039838665,-1718.99,0.00010998,2]
[340316381,1729039838675,-1718.99,0.00010998,2]
[340316382,1729039838684,-500.0,0.00010998,2]
[340316383,1729039838693,-1718.99,0.00010998,2]
[340316384,1729039838703,-500.0,0.00010998,2]
[340316385,1729039838712,-1718.99,0.00010998,2]
[340316386,1729039838721,-500.0,0.00010998,2]
[340316387,1729039838730,-1718.99,0.00010998,2]
[340316388,1729039838739,-500.0,0.00010998,2]
[340316389,1729039838749,-1718.99,0.00010998,2]
[340316390,1729039838758,-500.0,0.00010998,2]
[340316391,1729039838768,-500.0,0.00010998,2]
[340316392,1729039838778,-500.0,0.00010998,2]
[340316393,1729039838786,-500.0,0.00010998,2]
[340316394,1729039838796,-159.24326909,0.00010998,2]
[340316395,1729039838805,-1387.45,0.00010998,2]
[340316396,1729039838815,-1387.45,0.00010998,2]
[340316397,1729039838824,-1387.45,0.00010998,2]
[340316398,1729039838833,-1387.45,0.00010998,2]
[340316399,1729039838842,-1387.45,0.00010998,2]
[340316400,1729039838852,-1387.45,0.00010998,2]
[340316401,1729039838861,-500.0,0.00010998,2]
[340316402,1729039838870,-500.0,0.00010998,2]
[340316403,1729039838879,-500.0,0.00010998,2]
[340316404,1729039838889,-500.0,0.00010998,2]
[340316405,1729039838899,-500.0,0.00010998,2]
[340316406,1729039838907,-515.21908819,0.00010998,2]
[340316407,1729039838917,-500.0,0.00010998,2]
[340316408,1729039838927,-500.0,0.00010998,2]
[340316409,1729039838937,-500.0,0.00010998,2]
[340316410,1729039838947,-500.0,0.00010998,2]
[340316411,1729039838956,-500.0,0.00010998,2]
[340316412,1729039839097,-500.0,0.00010998,2]
[340316413,1729039839107,-500.0,0.00010998,2]
[340316414,1729039839117,-500.0,0.00010998,2]
[340316415,1729039839126,-500.0,0.00010998,2]
[340316416,1729039839137,-500.0,0.00010998,2]
[340316417,1729039839150,-500.0,0.00010998,2]
[340316418,1729039839159,-199.36611309,0.00010998,2]
[340316419,1729039839168,-173.10547287,0.00010998,2]
[340316420,1729039839176,-500.0,0.00010998,2]
[340316421,1729039839187,-500.0,0.00010998,2]
[340316422,1729039839197,-500.0,0.00010998,2]
[340316423,1729039839206,-500.0,0.00010998,2]
[340316424,1729039839216,-500.0,0.00010998,2]
[340316425,1729039839226,-500.0,0.00010998,2]
[340316426,1729039839235,-500.0,0.00010998,2]
[340316427,1729039839245,-500.0,0.00010998,2]
[340316428,1729039839255,-500.0,0.00010998,2]
[340316429,1729039839264,-500.0,0.00010998,2]
[340316430,1729039839274,-500.0,0.00010998,2]
[340316431,1729039839283,-500.0,0.00010998,2]
[340316432,1729039839292,-500.0,0.00010998,2]
[340316433,1729039839302,-500.0,0.00010998,2]
[340316434,1729039839311,-253.23489319,0.00010998,2]
[340316435,1729039839320,-1737.24,0.00010998,2]
[340316436,1729039839330,-1737.24,0.00010998,2]
[340316437,1729039839339,-1737.24,0.00010998,2]
[340316438,1729039839348,-1737.24,0.00010998,2]
[340316439,1729039839358,-1737.24,0.00010998,2]
[340316440,1729039839367,-1737.24,0.00010998,2]
[340316441,1729039839377,-1651.23,0.00010998,2]
[340316442,1729039839386,-1651.23,0.00010998,2]
[340316443,1729039839397,-1651.23,0.00010998,2]
[340316444,1729039839407,-1651.23,0.00010998,2]
[340316445,1729039839416,-1651.23,0.00010998,2]
[340316446,1729039839425,-1651.23,0.00010998,2]
[340316447,1729039839435,-500.0,0.00010998,2]
[340316448,1729039839444,-527.69803395,0.00010998,2]
[340316449,1729039839454,-500.0,0.00010998,2]
[340316450,1729039839463,-500.0,0.00010998,2]
[340316451,1729039839473,-435.50632473,0.00010998,2]
[340316452,1729039839482,-500.0,0.00010998,2]
[340316453,1729039839491,-500.0,0.00010998,2]
[340316454,1729039839501,-589.76312478,0.00010998,2]
[340316455,1729039839511,-500.0,0.00010998,2]
[340316456,1729039839520,-500.0,0.00010998,2]
[340316457,1729039839530,-500.0,0.00010998,2]
[340316458,1729039839540,-500.0,0.00010998,2]
[340316459,1729039839550,-500.0,0.00010998,2]
[340316460,1729039839560,-461.38677598,0.00010998,2]
[340316461,1729039839569,-255.83109289,0.00010998,2]
[340316462,1729039839579,-500.0,0.00010998,2]
[340316463,1729039839589,-500.0,0.00010998,2]
[340316464,1729039839599,-500.0,0.00010998,2]
[340316465,1729039839608,-500.0,0.00010998,2]
[340316466,1729039839618,-500.0,0.00010998,2]
[340316467,1729039839627,-500.0,0.00010998,2]
[340316468,1729039839637,-500.0,0.00010998,2]
[340316469,1729039839648,-500.0,0.00010998,2]
[340316470,1729039839657,-500.0,0.00010998,2]
[340316471,1729039839666,-500.0,0.00010998,2]
[340316472,1729039839676,-500.0,0.00010998,2]
[340316473,1729039839685,-500.0,0.00010998,2]
[340316474,1729039839694,-647.55,0.00010998,2]
[340316475,1729039839704,-647.55,0.00010998,2]
[340316476,1729039839713,-647.55,0.00010998,2]
[340316477,1729039839723,-647.55,0.00010998,2]
[340316478,1729039839733,-647.55,0.00010998,2]
[340316479,1729039839743,-647.55,0.00010998,2]
[340316480,1729039839752,-647.55,0.00010998,2]
[340316481,1729039839761,-647.55,0.00010998,2]
[340316482,1729039839771,-647.55,0.00010998,2]
[340316483,1729039839780,-647.55,0.00010998,2]
[340316484,1729039839790,-647.55,0.00010998,2]
[340316485,1729039839799,-647.55,0.00010998,2]
[340316486,1729039839809,-2214.24,0.00010998,2]
[340316487,1729039839819,-647.55,0.00010998,2]
[340316488,1729039839828,-2214.24,0.00010998,2]
[340316489,1729039839838,-2214.24,0.00010998,2]
[340316490,1729039839848,-2214.24,0.00010998,2]
[340316491,1729039839857,-2214.24,0.00010998,2]
[340316492,1729039839867,-2214.24,0.00010998,2]
[340316493,1729039839877,-2214.24,0.00010998,2]
[340316494,1729039839887,-2214.24,0.00010998,2]
[340316495,1729039839902,-2214.24,0.00010998,2]
[340316496,1729039839912,-2214.24,0.00010998,2]
[340316497,1729039839922,-2214.24,0.00010998,2]
[340316498,1729039839931,-2214.24,0.00010998,2]
[340316499,1729039839941,-2214.24,0.00010998,2]
[340316500,1729039839951,-500.0,0.00010998,2]
[340316501,1729039839961,-2214.24,0.00010998,2]
[340316502,1729039839971,-500.0,0.00010998,2]
[340316503,1729039839980,-2214.24,0.00010998,2]
[340316504,1729039839990,-500.0,0.00010998,2]
[340316505,1729039839999,-2214.24,0.00010998,2]
[340316506,1729039840008,-500.0,0.00010998,2]
[340316507,1729039840018,-500.0,0.00010998,2]
[340316508,1729039840027,-500.0,0.00010998,2]
[340316509,1729039840037,-500.0,0.00010998,2]
[340316510,1729039840047,-500.0,0.00010998,2]
[340316511,1729039840057,-500.0,0.00010998,2]
[340316513,1729039840066,-500.0,0.00010998,2]
[340316515,1729039840074,-500.0,0.00010998,2]
[340316516,1729039840083,-500.0,0.00010998,2]
[340316517,1729039840093,-500.0,0.00010998,2]
[340316518,1729039840102,-500.0,0.00010998,2]
[340316519,1729039840112,-500.0,0.00010998,2]
[340316520,1729039840122,-500.0,0.00010998,2]
[340316521,1729039840131,-500.0,0.00010998,2]
[340316522,1729039840141,-500.0,0.00010998,2]
[340316523,1729039840151,-500.0,0.00010998,2]
[340316524,1729039840160,-500.0,0.00010998,2]
[340316525,1729039840170,-500.0,0.00010998,2]
[340316526,1729039840179,-500.0,0.00010998,2]
[340316527,1729039840189,-438.8690702,0.00010998,2]
[340316528,1729039840198,-500.0,0.00010998,2]
[340316529,1729039840208,-500.0,0.00010998,2]
[340316530,1729039840218,-500.0,0.00010998,2]
[340316531,1729039840227,-500.0,0.00010998,2]
[340316532,1729039840237,-602.67160142,0.00010998,2]
[340316533,1729039840246,-500.0,0.00010998,2]
[340316534,1729039840255,-567.489152,0.00010998,2]
[340316535,1729039840265,-500.0,0.00010998,2]
[340316536,1729039840274,-1241.58,0.00010998,2]
[340316537,1729039840283,-500.0,0.00010998,2]
[340316538,1729039840292,-1241.58,0.00010998,2]
[340316539,1729039840301,-500.0,0.00010998,2]
[340316540,1729039840310,-1241.58,0.00010998,2]
[340316541,1729039840319,-430.79073773,0.00010998,2]
[340316542,1729039840329,-1241.58,0.00010998,2]
[340316543,1729039840339,-1241.58,0.00010998,2]
[340316544,1729039840349,-1241.58,0.00010998,2]
[340316545,1729039840359,-1241.58,0.00010998,2]
[340316546,1729039840368,-1241.58,0.00010998,2]
[340316547,1729039840377,-1241.58,0.00010998,2]
[340316548,1729039840387,-1241.58,0.00010998,2]
[340316549,1729039840397,-1241.58,0.00010998,2]
[340316550,1729039840407,-500.0,0.00010998,2]
[340316551,1729039840417,-1241.58,0.00010998,2]
[340316552,1729039840426,-500.0,0.00010998,2]
[340316553,1729039840436,-1241.58,0.00010998,2]
[340316554,1729039840445,-500.0,0.00010998,2]
[340316555,1729039840455,-1241.58,0.00010998,2]
[340316556,1729039840464,-500.0,0.00010998,2]
[340316557,1729039840474,-1241.58,0.00010998,2]
[340316558,1729039840483,-500.0,0.00010998,2]
[340316559,1729039840493,-500.0,0.00010998,2]
[340316560,1729039840504,-1241.58,0.00010998,2]
[340316561,1729039840514,-213.33630603,0.00010999,2]
[340316562,1729039840523,-500.0,0.00010999,2]
[340316563,1729039840533,-582.55726593,0.00010999,2]
[340316564,1729039840543,-500.0,0.00010999,2]
[340316565,1729039840552,-313.1818772,0.00010999,2]
[340316566,1729039840562,-500.0,0.00010999,2]
[340316568,1729039840572,-573.10763617,0.00010999,2]
[340316570,1729039840581,-1320.13,0.00010999,2]
[340316572,1729039840591,-500.0,0.00010999,2]
[340316574,1729039840601,-500.0,0.00010999,2]
[340316576,1729039840611,-1320.13,0.00010999,2]
[340316578,1729039840620,-539.44357448,0.00010999,2]
[340316580,1729039840630,-500.0,0.00010999,2]
[340316582,1729039840640,-1320.13,0.00010999,2]
[340316584,1729039840652,-500.0,0.00010999,2]
[340316586,1729039840662,-1320.13,0.00010999,2]
[340316588,1729039840671,-1320.13,0.00010999,2]
[340316590,1729039840681,-1320.13,0.00010999,2]
[340316592,1729039840690,-500.0,0.00010999,2]
[340316594,1729039840700,-1320.13,0.00010999,2]
[340316596,1729039840709,-500.0,0.00010999,2]
[340316598,1729039840720,-1320.13,0.00010999,2]
[340316600,1729039840729,-500.0,0.00010999,2]
[340316602,1729039840740,-500.0,0.00010999,2]
[340316604,1729039840749,-500.0,0.00010999,2]
[340316606,1729039840758,-1320.13,0.00010999,2]
[340316608,1729039840768,-546.90762692,0.00010999,2]
[340316610,1729039840778,-534.41308049,0.00010999,2]
[340316612,1729039840787,-1320.13,0.00010999,2]
[340316614,1729039840797,-1320.13,0.00010999,2]
[340316617,1729039840807,-1320.13,0.00010999,2]
[340316618,1729039840816,-500.0,0.00010999,2]
[340316620,1729039840825,-1320.13,0.00010999,2]
[340316622,1729039840835,-1320.13,0.00010999,2]
[340316624,1729039840844,-237.16527076,0.00010999,2]
[340316627,1729039840854,-1320.13,0.00010999,2]
[340316629,1729039840864,-1320.13,0.00010999,2]
[340316631,1729039840873,-500.0,0.00010999,2]
[340316644,1729039840994,-1320.13,0.00010999,2]
[340316646,1729039841004,-500.0,0.00010999,2]
[340316648,1729039841015,-1320.13,0.00010999,2]
[340316650,1729039841024,-500.0,0.00010999,2]
[340316652,1729039841034,-500.0,0.00010999,2]
[340316654,1729039841044,-1320.13,0.00010999,2]
[340316656,1729039841054,-500.0,0.00010999,2]
[340316658,1729039841064,-500.0,0.00010999,2]
[340316660,1729039841073,-1320.13,0.00010999,2]
[340316662,1729039841082,-317.49473596,0.00010999,2]
[340316664,1729039841092,-500.0,0.00010999,2]
[340316666,1729039841101,-500.0,0.00010999,2]
[340316668,1729039841110,-1320.13,0.00010999,2]
[340316670,1729039841119,-1320.13,0.00010999,2]
[340316672,1729039841129,-500.0,0.00010999,2]
[340316674,1729039841139,-1320.13,0.00010999,2]
[340316676,1729039841152,-500.0,0.00010999,2]
[340316678,1729039841161,-1320.35304256,0.00010999,2]
[340316680,1729039841171,-500.0,0.00010999,2]
[340316682,1729039841180,-500.0,0.00010999,2]
[340316684,1729039841190,-500.0,0.00010999,2]
[340316686,1729039841199,-500.0,0.00010999,2]